fUST/lending_fUST_20240820
["ID","MTS","AMOUNT","RATE_DAILY","PERIOD"]
[335316668,1724105440192,-178.571428,0.00014516,2]
[335316669,1724105440202,-178.571428,0.00014641,2]
[335316670,1724105440213,-178.571428,0.00014766,2]
[335316671,1724105440225,-178.571428,0.00014891,2]
[335316672,1724105440236,-178.571428,0.00015016,2]
[335316673,1724105440246,-178.571428,0.00015141,2]
[335316674,1724105440257,-420.0,0.00015671,2]
[335316675,1724105440268,-153.0,0.00015678,2]
[335316676,1724105440279,-153.0,0.00015778,2]
[335316677,1724105440290,-153.0,0.00015878,2]
[335316678,1724105440300,-153.0,0.00015878,2]
[335316679,1724105440311,-153.0,0.00015878,2]
[335316680,1724105440323,-358.190943,0.0001589,2]
[335316681,1724105440334,-153.0,0.00015952,2]
[335316682,1724105440344,-153.0,0.00015952,2]
[335316683,1724105440354,-153.0,0.00015952,2]
[335316684,1724105440363,-153.0,0.00015952,2]
[335316685,1724105440372,-153.0,0.00015952,2]
[335316686,1724105440384,-153.0,0.00015952,2]
[335316687,1724105440398,-153.0,0.00015952,2]
[335316688,1724105440408,-153.0,0.00015952,2]
[335316689,1724105440420,-153.0,0.00015952,2]
[335316690,1724105440430,-153.0,0.00015952,2]
[335316691,1724105440441,-153.0,0.00015952,2]
[335316692,1724105440451,-153.0,0.00015952,2]
[335316693,1724105440463,-153.0,0.00015952,2]
[335316694,1724105440473,-153.0,0.00015952,2]
[335316695,1724105440485,-153.0,0.00015952,2]
[335316696,1724105440495,-153.0,0.00015952,2]
[335316697,1724105440507,-153.0,0.00015952,2]
[335316698,1724105440517,-153.0,0.00015952,2]
[335316699,1724105440529,-153.0,0.00015952,2]
[335316700,1724105440540,-153.0,0.00015952,2]
[335316701,1724105440550,-153.0,0.00015952,2]
[335316702,1724105440561,-153.0,0.00015952,2]
[335316703,1724105440571,-153.0,0.00015952,2]
[335316704,1724105440582,-153.0,0.00015952,2]
[335316705,1724105440592,-153.0,0.00015952,2]
[335316706,1724105440603,-153.0,0.00015952,2]
[335316707,1724105440616,-153.0,0.00015952,2]
[335316708,1724105440627,-153.0,0.00015952,2]
[335316709,1724105440637,-153.0,0.00015952,2]
[335316710,1724105440652,-153.0,0.00015952,2]
[335316711,1724105440664,-153.0,0.00015952,2]
[335316712,1724105440676,-153.0,0.00015952,2]
[335316713,1724105440685,-153.0,0.00015952,2]
[335316714,1724105440695,-153.0,0.00015952,2]
[335316715,1724105440706,-153.0,0.00015952,2]
[335316716,1724105440717,-153.0,0.00015952,2]
[335316717,1724105440727,-153.0,0.00015952,2]
[335316718,1724105440738,-153.0,0.00015952,2]
[335316719,1724105440748,-153.0,0.00015952,2]
[335316720,1724105440758,-153.0,0.00015952,2]
[335316721,1724105440769,-153.0,0.00015952,2]
[335316722,1724105440780,-153.0,0.00015952,2]
[335316723,1724105440790,-153.0,0.00015952,2]
[335316724,1724105440800,-153.0,0.00015952,2]
[335316725,1724105440811,-153.0,0.00015952,2]
[335316726,1724105440822,-153.0,0.00015952,2]
[335316727,1724105440834,-153.0,0.00015952,2]
[335316728,1724105440845,-153.0,0.00015952,2]
[335316729,1724105440856,-153.0,0.00015952,2]
[335316730,1724105440866,-153.0,0.00015952,2]
[335316731,1724105440876,-153.0,0.00015952,2]
[335316732,1724105440885,-153.0,0.00015952,2]
[335316733,1724105440895,-153.0,0.00015952,2]
[335316734,1724105440905,-153.0,0.00015952,2]
[335316735,1724105440915,-153.0,0.00015952,2]
[335316736,1724105440925,-153.0,0.00015952,2]
[335316737,1724105440934,-153.0,0.00015952,2]
[335316738,1724105440944,-153.0,0.00015952,2]
[335316739,1724105440953,-153.0,0.00015952,2]
[335316740,1724105440963,-153.0,0.00015952,2]
[335316741,1724105440972,-153.0,0.00015952,2]
[335316742,1724105440981,-153.0,0.00015952,2]
[335316743,1724105440990,-153.0,0.00015952,2]
[335316744,1724105441000,-153.0,0.00015952,2]
[335316745,1724105441010,-153.0,0.00015952,2]
[335316746,1724105441020,-153.0,0.00015952,2]
[335316747,1724105441030,-153.0,0.00015952,2]
[335316748,1724105441039,-153.0,0.00015952,2]
[335316749,1724105441050,-153.0,0.00015952,2]
[335316750,1724105441063,-153.0,0.00015952,2]
[335316751,1724105441074,-720.02866865,0.00015998,2]
[335316752,1724105441084,-167.33482158,0.00016095,2]
[335316753,1724105441094,-153.0,0.000161,2]
[335316754,1724105441106,-207.5740843,0.00016107,2]
[335316755,1724105441115,-271.9854705,0.00016107,2]
[335316756,1724105441124,-153.0,0.00016107,2]
[335316757,1724105441135,-153.0,0.00016107,2]
[335316758,1724105441146,-153.0,0.00016107,2]
[335316759,1724105441155,-153.0,0.00016107,2]
[335316760,1724105441165,-155.1237061,0.00016107,2]
[335316761,1724105441175,-153.0,0.00016107,2]
[335316762,1724105441184,-153.0,0.00016107,2]
[335316763,1724105441193,-153.0,0.00016107,2]
[335316764,1724105441203,-207.0733667,0.00016222,2]
[335316765,1724105441213,-415.1024823,0.00016234,2]
[335316766,1724105441223,-4210.78209923,0.00016238,2]
[335316767,1724105441233,-1414.0,0.00016241,2]
[335316768,1724105441243,-7726.0,0.00016241,2]
[335316769,1724105441253,-7731.221,0.00016241,2]
[335316770,1724105441263,-5328.69624806,0.000163,2]
[335316771,1724105441272,-150.0,0.0001631,2]
[335316772,1724105441282,-207.21742131,0.00016338,2]
[335316773,1724105441291,-150.07971474,0.00016338,2]
[335316774,1724105441301,-64907.7140958,0.00016428,2]
[335316775,1724105441310,-262.94607408,0.00016437,2]
[335316776,1724105441319,-500.0,0.00016437,2]
[335316777,1724105441329,-500.0,0.00016437,2]
[335316778,1724105441339,-500.0,0.00016437,2]
[335316779,1724105441348,-500.0,0.00016437,2]
[335316780,1724105441358,-485.06285796,0.00016437,2]
[335316781,1724105441367,-500.0,0.00016438,2]
[335316782,1724105441377,-500.0,0.00016438,2]
[335316783,1724105441387,-500.0,0.00016438,2]
[335316784,1724105441397,-500.0,0.00016438,2]
[335316785,1724105441407,-500.0,0.00016438,2]
[335316786,1724105441419,-500.0,0.00016438,2]
[335316787,1724105441431,-500.0,0.00016438,2]
[335316788,1724105441441,-500.0,0.00016438,2]
[335316789,1724105441451,-500.0,0.00016438,2]
[335316790,1724105441460,-500.0,0.00016438,2]
[335316791,1724105441469,-500.0,0.00016438,2]
[335316792,1724105441478,-500.0,0.00016438,2]
[335316793,1724105441489,-500.0,0.00016438,2]
[335316794,1724105441499,-500.0,0.00016438,2]
[335316795,1724105441508,-500.0,0.00016438,2]
[335316796,1724105441519,-522.29600731,0.00016438,2]
[335316797,1724105441529,-500.0,0.00016438,2]
[335316798,1724105441538,-500.0,0.00016438,2]
[335316799,1724105441547,-500.0,0.00016438,2]
[335316800,1724105441556,-500.0,0.00016438,2]
[335316801,1724105441566,-500.0,0.00016438,2]
[335316802,1724105441577,-155.9040371,0.00016438,2]
[335316803,1724105441589,-500.0,0.00016438,2]
[335316804,1724105441599,-500.0,0.00016438,2]
[335316805,1724105441610,-160.04994908,0.00016438,2]
[335316806,1724105441621,-500.0,0.00016438,2]
[335316807,1724105441632,-500.0,0.00016438,2]
[335316808,1724105441643,-602.15090383,0.00016438,2]
[335316809,1724105441655,-500.0,0.00016438,2]
[335316810,1724105441665,-500.0,0.00016438,2]
[335316811,1724105441674,-500.0,0.00016438,2]
[335316812,1724105441684,-500.0,0.00016438,2]
[335316813,1724105441693,-500.0,0.00016438,2]
[335316814,1724105441703,-500.0,0.00016438,2]
[335316815,1724105441715,-500.0,0.00016438,2]
[335316816,1724105441725,-500.0,0.00016438,2]
[335316817,1724105441734,-500.0,0.00016438,2]
[335316818,1724105441744,-500.0,0.00016438,2]
[335316819,1724105441753,-816.88,0.00016438,2]
[335316820,1724105441765,-500.0,0.00016438,2]
[335316821,1724105441774,-500.0,0.00016438,2]
[335316822,1724105441784,-2105.15650813,0.00016438,2]
[335316891,1724106442132,-273.37336231,9.801e-05,2]
[335316892,1724106442154,-1054.61386506,0.00012444,2]
[335316927,1724106631994,-273.37336231,9.9e-05,2]
[335316928,1724106632006,-300.0,0.00012355,2]
[335316929,1724106632019,-11272.69204538,0.00012356,2]
[335316930,1724106632030,-300.0,0.00012443,2]
[335316931,1724106632040,-4854.56455081,0.00012444,2]
[335316932,1724106632053,-2963.32263713,0.00012444,2]
[335316945,1724106638147,-4728.758864,0.00012444,2]
[335316947,1724106638158,-2712.58332809,0.00012782,2]
[335316949,1724106638170,-1396.00306611,0.00012782,2]
[335316951,1724106638180,-1125.3046524,0.00012878,2]
[335316953,1724106638190,-869.1461464,0.00012989,2]
[335316955,1724106638199,-544.00882293,0.00012989,2]
[335316957,1724106638211,-449.95328021,0.00012989,2]
[335316959,1724106638221,-243.69185787,0.00012989,2]
[335316961,1724106638230,-288.27624498,0.00012989,2]
[335316963,1724106638241,-894.99754113,0.00012989,2]
[335316965,1724106638251,-155.16708104,0.00012991,2]
[335316968,1724106638262,-520.25072733,0.00012991,2]
[335316970,1724106638271,-178.4943829,0.00012991,2]
[335316972,1724106638283,-194.34552148,0.00012991,2]
[335316974,1724106638295,-155.56874795,0.00012991,2]
[335316976,1724106638305,-309.3658001,0.00012991,2]
[335316978,1724106638314,-239.91278038,0.00012999,2]
[335316980,1724106638326,-160.65194178,0.00012999,2]
[335316983,1724106638338,-569.2097652,0.00012999,2]
[335316985,1724106638348,-154.69833824,0.00012999,2]
[335316987,1724106638359,-862.23977155,0.00013,2]
[335316989,1724106638369,-196.66350448,0.00013025,2]
[335316991,1724106638381,-646.0716477,0.00013051,2]
[335316993,1724106638393,-241.76594369,0.00013497,2]
[335316995,1724106638404,-420.0,0.00013558,2]
[335316998,1724106638419,-500.0,0.00013597,2]
[335317000,1724106638429,-154.69833824,0.00013599,2]
[335317002,1724106638441,-420.0,0.00013687,2]
[335317004,1724106638452,-818.76989196,0.00013697,2]
[335317007,1724106638464,-687.12464,0.00013699,2]
[335317009,1724106638475,-248.29697074,0.00013699,2]
[335317011,1724106638485,-646.303389,0.00014247,2]
[335317013,1724106638498,-190.029886,0.00014247,2]
[335317015,1724106638509,-323.0,0.00014878,2]
[335317018,1724106638520,-442.0,0.00015056,2]
[335317020,1724106638531,-207.5740843,0.00015056,2]
[335317022,1724106638541,-154.69833824,0.00015083,2]
[335317024,1724106638552,-207.5740843,0.00015578,2]
[335317026,1724106638562,-207.5740843,0.00015778,2]
[335317029,1724106638574,-207.5740843,0.00015778,2]
[335317031,1724106638585,-207.5740843,0.00015878,2]
[335317033,1724106638604,-340.281395,0.0001589,2]
[335317035,1724106638615,-371.8885009,0.0001589,2]
[335317037,1724106638626,-5328.69624806,0.00016204,2]
[335317039,1724106638636,-3063.01786875,0.00016338,2]
[335317042,1724106638646,-720.38263068,0.00016338,2]
[335317044,1724106638655,-720.38263064,0.00016344,2]
[335317046,1724106638664,-720.38263064,0.00016349,2]
[335317048,1724106638675,-720.38263064,0.00016355,2]
[335317050,1724106638686,-720.38263064,0.0001636,2]
[335317052,1724106638695,-153.0,0.00016382,2]
[335317054,1724106638706,-500.0,0.00016417,2]
[335317056,1724106638715,-184.06225185,0.00016417,2]
[335317058,1724106638725,-239.54400057,0.00016417,2]
[335317061,1724106638737,-500.0,0.00016417,2]
[335317063,1724106638747,-500.0,0.00016417,2]
[335317065,1724106638758,-29448.53089545,0.00016418,2]
[335317068,1724106638777,-332259.17974255,0.00016418,2]
[335317070,1724106638787,-192192.62835141,0.00016438,5]
[335317097,1724106640388,-534.74029631,0.00012989,2]
[335317100,1724106640399,-79910.98486951,0.00016438,5]
[335317102,1724106640410,-500.0,0.00016438,2]
[335317104,1724106640425,-154.69833824,0.00016438,2]
[335317106,1724106640436,-515.56278426,0.00016438,2]
[335317108,1724106640447,-500.0,0.00016438,2]
[335317110,1724106640459,-500.0,0.00016438,2]
[335317113,1724106640471,-500.0,0.00016438,2]
[335317115,1724106640483,-508.12,0.00016438,2]
[335317117,1724106640496,-500.0,0.00016438,2]
[335317119,1724106640507,-509.558402,0.00016438,2]
[335317121,1724106640518,-173.17066174,0.00016438,2]
[335317124,1724106640528,-500.0,0.00016438,2]
[335317126,1724106640537,-500.0,0.00016438,2]
[335317128,1724106640546,-500.0,0.00016438,2]
[335317130,1724106640556,-500.0,0.00016438,2]
[335317132,1724106640566,-500.0,0.00016438,2]
[335317134,1724106640576,-500.0,0.00016438,2]
[335317136,1724106640586,-503.77217351,0.00016438,2]
[335317138,1724106640596,-500.0,0.00016438,2]
[335317140,1724106640606,-500.0,0.00016438,2]
[335317142,1724106640616,-500.0,0.00016438,2]
[335317144,1724106640627,-500.0,0.00016438,2]
[335317147,1724106640637,-479.33113789,0.00016438,2]
[335317149,1724106640646,-500.0,0.00016438,2]
[335317151,1724106640657,-502.97276873,0.00016438,2]
[335317153,1724106640667,-500.0,0.00016438,2]
[335317155,1724106640677,-500.0,0.00016438,2]
[335317157,1724106640687,-500.0,0.00016438,2]
[335317159,1724106640697,-494.09680444,0.00016438,2]
[335317161,1724106640708,-500.0,0.00016438,2]
[335317163,1724106640719,-500.0,0.00016438,2]
[335317165,1724106640731,-500.0,0.00016438,2]
[335317167,1724106640741,-500.0,0.00016438,2]
[335317169,1724106640751,-500.0,0.00016438,2]
[335317171,1724106640762,-500.0,0.00016438,2]
[335317174,1724106640772,-500.0,0.00016438,2]
[335317176,1724106640784,-500.0,0.00016438,2]
[335317178,1724106640795,-500.0,0.00016438,2]
[335317180,1724106640806,-518.21978141,0.00016438,2]
[335317182,1724106640816,-500.0,0.00016438,2]
[335317185,1724106640827,-500.0,0.00016438,2]
[335317187,1724106640837,-500.0,0.00016438,2]
[335317189,1724106640848,-500.0,0.00016438,2]
[335317191,1724106640861,-500.0,0.00016438,2]
[335317193,1724106640871,-803.56,0.00016438,2]
[335317196,1724106640882,-500.0,0.00016438,2]
[335317198,1724106640892,-500.0,0.00016438,2]
[335317200,1724106640902,-500.0,0.00016438,2]
[335317202,1724106640913,-500.0,0.00016438,2]
[335317204,1724106640924,-500.0,0.00016438,2]
[335317206,1724106640934,-500.0,0.00016438,2]
[335317208,1724106640944,-500.0,0.00016438,2]
[335317210,1724106640954,-500.0,0.00016438,2]
[335317213,1724106640965,-500.0,0.00016438,2]
[335317215,1724106640975,-500.0,0.00016438,2]
[335317217,1724106640986,-500.0,0.00016438,2]
[335317219,1724106640997,-500.0,0.00016438,2]
[335317221,1724106641009,-500.0,0.00016438,2]
[335317223,1724106641018,-500.0,0.00016438,2]
[335317226,1724106641030,-500.0,0.00016438,2]
[335317228,1724106641041,-500.0,0.00016438,2]
[335317230,1724106641051,-500.0,0.00016438,2]
[335317232,1724106641062,-500.0,0.00016438,2]
[335317234,1724106641072,-500.0,0.00016438,2]
[335317236,1724106641083,-500.0,0.00016438,2]
[335317239,1724106641095,-500.0,0.00016438,2]
[335317241,1724106641106,-500.0,0.00016438,2]
[335317243,1724106641117,-500.0,0.00016438,2]
[335317245,1724106641128,-208.95110547,0.00016438,2]
[335317248,1724106641139,-500.0,0.00016438,2]
[335317249,1724106641148,-552.36447716,0.00016438,2]
[335317252,1724106641158,-500.0,0.00016438,2]
[335317254,1724106641167,-500.0,0.00016438,2]
[335317256,1724106641177,-500.0,0.00016438,2]
[335317258,1724106641186,-500.0,0.00016438,2]
[335317260,1724106641196,-500.0,0.00016438,2]
[335317262,1724106641205,-500.0,0.00016438,2]
[335317264,1724106641215,-500.0,0.00016438,2]
[335317266,1724106641225,-500.0,0.00016438,2]
[335317268,1724106641234,-500.0,0.00016438,2]
[335317270,1724106641244,-500.0,0.00016438,2]
[335317272,1724106641253,-500.0,0.00016438,2]
[335317274,1724106641263,-500.0,0.00016438,2]
[335317276,1724106641273,-500.0,0.00016438,2]
[335317278,1724106641282,-500.0,0.00016438,2]
[335317280,1724106641291,-500.0,0.00016438,2]
[335317282,1724106641300,-500.0,0.00016438,2]
[335317284,1724106641310,-500.0,0.00016438,2]
[335317286,1724106641319,-325.34081474,0.00016438,2]
[335317288,1724106641328,-500.0,0.00016438,2]
[335317290,1724106641338,-500.0,0.00016438,2]
[335317292,1724106641348,-500.0,0.00016438,2]
[335317294,1724106641358,-500.0,0.00016438,2]
[335317296,1724106641367,-500.0,0.00016438,2]
[335317298,1724106641376,-500.0,0.00016438,2]
[335317300,1724106641386,-506.23434971,0.00016438,2]
[335317302,1724106641395,-500.0,0.00016438,2]
[335317304,1724106641404,-276.54070779,0.00016438,2]
[335317306,1724106641416,-500.0,0.00016438,2]
[335317308,1724106641427,-251.5600659,0.00016438,2]
[335317414,1724107770089,93798.54486513,0.000201,59]
[335317416,1724107790507,50000.0,0.000195,50]
[335317425,1724107806577,30000.0,0.000196,60]
[335317463,1724107832238,-273.37336231,9.9e-05,2]
[335317465,1724107832247,-877.19189681,0.00012779,2]
[335317467,1724107832257,-779.85217684,0.00012886,2]
[335317469,1724107832266,-252.28200477,0.00012934,2]
[335317471,1724107832276,-250.13955279,0.00012934,2]
[335317473,1724107832287,-811.0572358,0.00012934,2]
[335317475,1724107832296,-154.69833824,0.00012934,2]
[335317477,1724107832306,-160.27845682,0.00013477,2]
[335317479,1724107832315,-201.02676042,0.00013497,2]
[335317481,1724107832325,-543.66379589,0.00013596,2]
[335317483,1724107832334,-316.1168983,0.00013699,2]
[335317487,1724107832354,-2683.8831017,0.00013699,2]
[335317489,1724107832364,-710.093129,0.00013699,2]
[335317491,1724107832373,-288.04043718,0.00014245,2]
[335317493,1724107832382,-7815.05909964,0.00014245,2]
[335317495,1724107832392,-282.31901763,0.00014245,2]
[335317497,1724107832404,-632.991207,0.00014247,2]
[335317499,1724107832414,-176.447653,0.00014247,2]
[335317501,1724107832424,-153.0,0.00015634,2]
[335317503,1724107832433,-153.0,0.00015634,2]
[335317505,1724107832443,-153.0,0.00015634,2]
[335317507,1724107832453,-153.0,0.00015634,2]
[335317509,1724107832463,-153.0,0.00015634,2]
[335317511,1724107832475,-510.1422096,0.00015634,2]
[335317514,1724107832485,-408.9517048,0.00015634,2]
[335317516,1724107832496,-323.267325,0.0001589,2]
[335317518,1724107832507,-481.59412192,0.00015958,2]
[335317520,1724107832518,-200.0,0.00015973,2]
[335317522,1724107832530,-28296.58322222,0.00016,2]
[335317559,1724107838126,-1165.1290326,0.00016,2]
[335317816,1724107840572,-40922.94418675,0.00016,2]
[335317900,1724107841782,40000.0,0.000185,35]
[335319306,1724107873001,5865.95408617,0.000175,20]
[335319314,1724108243772,3000.0,0.00017,20]
[335319326,1724108837166,-3478.37390573,9.606e-05,2]
[335319340,1724108959126,-300.0,9.605e-05,2]
[335319341,1724108959163,-300.0,9.605e-05,2]
[335319342,1724108959186,-1521.62609427,9.606e-05,2]
[335319343,1724108959208,-155.16861435,9.606e-05,2]
[335319344,1724108959233,-2515.32253852,9.606e-05,2]
[335319492,1724109038426,-1378.86194558,9.51e-05,2]
[335319495,1724109038436,-680.31074553,9.606e-05,2]
[335319496,1724109038445,-1456.74798189,9.606e-05,2]
[335319509,1724109038558,-2904.84720769,9.606e-05,2]
[335319511,1724109038567,-218.59781191,9.606e-05,2]
[335319513,1724109038577,-155.11951729,0.0001026,2]
[335319515,1724109038586,-593.9,0.00010959,2]
[335319517,1724109038595,-215.09339058,0.00012898,2]
[335319518,1724109038604,-197.9252533,0.00012991,2]
[335319520,1724109038613,-6595.9263235,0.00013591,2]
[335319522,1724109038622,-493.30764145,0.00013688,2]
[335319523,1724109038632,-222.44078643,0.00013688,2]
[335319524,1724109038641,-342.65845262,0.00013697,2]
[335319525,1724109038650,-362.27815603,0.00013697,2]
[335319526,1724109038660,-305.66806289,0.00013697,2]
[335319527,1724109038669,-194.82337617,0.00013699,2]
[335319528,1724109038678,-422.782868,0.00013965,2]
[335319529,1724109038687,-674.766973,0.00014247,2]
[335319530,1724109038695,-500.0,0.00014687,2]
[335319531,1724109038704,-783.6306089,0.00014812,2]
[335319532,1724109038713,-294.7678211,0.00014812,2]
[335319533,1724109038723,-408.9517048,0.00015078,2]
[335319534,1724109038733,-408.9517048,0.00015078,2]
[335319535,1724109038742,-500.0,0.0001546,2]
[335319536,1724109038752,-817.9034096,0.00015478,2]
[335319537,1724109038761,-306.0,0.00015527,2]
[335319538,1724109038771,-710.5593929,0.00015634,2]
[335319539,1724109038780,-1414.0,0.0001564,2]
[335319540,1724109038790,-150.0,0.00015743,2]
[335319541,1724109038799,-5328.69624806,0.00015868,2]
[335319542,1724109038809,-307.103958,0.0001589,2]
[335319543,1724109038818,-4510.18511427,0.000159,2]
[335319544,1724109038827,-5244.78933856,0.00015999,2]
[335319545,1724109038837,-5244.78933856,0.00015999,2]
[335319546,1724109038846,-29615.34355843,0.00016,2]
[335319547,1724109038855,-9444.39953667,0.00016,2]
[335319548,1724109038865,-300.0,0.00016,2]
[335319549,1724109038875,-953.38755458,0.00016115,2]
[335319550,1724109038884,-500.0,0.00016274,2]
[335319551,1724109038894,-2756.71608183,0.00016296,2]
[335319552,1724109038903,-17120.69926546,0.00016338,2]
[335319553,1724109038912,-500.0,0.00016339,2]
[335319554,1724109038922,-500.0,0.00016339,2]
[335319555,1724109038932,-217.6808004,0.00016339,2]
[335319556,1724109038942,-70935.4508161,0.0001634,2]
[335319557,1724109038952,-889.5252585,0.00016349,2]
[335319558,1724109038961,-150.0,0.0001635,2]
[335319559,1724109038971,-150.0,0.0001635,2]
[335319560,1724109038981,-150.0,0.0001635,2]
[335319561,1724109038990,-521.0,0.0001635,2]
[335319562,1724109038999,-435.65805445,0.00016385,5]
[335319563,1724109039008,-283741.803264,0.00016386,2]
[335319564,1724109039018,-74184.0789798,0.00016396,5]
[335319626,1724109040610,-600.88577429,0.00011621,2]
[335319628,1724109040620,-2127.07450646,0.00013599,2]
[335319630,1724109040629,-125467.07896175,0.00016396,5]
[335319917,1724109043463,-157.65237765,0.00012989,2]
[335319919,1724109043473,-278.0056768,0.0001564,2]
[335320223,1724110027146,-820.12008693,9.703e-05,2]
[335320224,1724110027170,-722.90580828,0.00012289,2]
[335320354,1724110238488,-273.37336231,9.51e-05,2]
[335320356,1724110238499,-183.042324,0.00011725,2]
[335320358,1724110238509,-2090.19204508,0.00011987,2]
[335320370,1724110238610,-19705.81933714,0.00011987,2]
[335320372,1724110238621,-300.0,0.00011998,2]
[335320374,1724110238632,-300.0,0.00011998,2]
[335320376,1724110238643,-11373.72446122,0.00011999,2]
[335320378,1724110238653,-1717.89561353,0.00012289,2]
[335320380,1724110238664,-1670.74719108,0.00012289,2]
[335320383,1724110238676,-13046.92111922,0.00012289,2]
[335320385,1724110238686,-183.042324,0.00012336,2]
[335320387,1724110238698,-2128.04084944,0.00012551,2]
[335320389,1724110238708,-2128.04084944,0.00012551,2]
[335320391,1724110238719,-2166.25640825,0.00012551,2]
[335320394,1724110238730,-7511.70001098,0.00012782,2]
[335320396,1724110238742,-6086.56233155,0.000129,2]
[335320398,1724110238752,-223.52112672,0.00012985,2]
[335320400,1724110238761,-154.86906917,0.00012985,2]
[335320402,1724110238771,-155.03482305,0.00012989,2]
[335320404,1724110238782,-1322.48263922,0.00013,2]
[335320406,1724110238792,-665.04001235,0.00013051,2]
[335320408,1724110238803,-420.0,0.00013198,2]
[335320410,1724110238812,-951.82895192,0.00013596,2]
[335320413,1724110238823,-288.27624498,0.00013596,2]
[335320415,1724110238835,-288.27624498,0.00013596,2]
[335320417,1724110238846,-155.43980506,0.00013596,2]
[335320419,1724110238857,-544.00882293,0.00013599,2]
[335320421,1724110238868,-495.14476956,0.00013599,2]
[335320424,1724110238881,-42411.5996467,0.00013688,2]
[335320426,1724110238890,-590.63784326,0.00013697,2]
[335320428,1724110238900,-500.0,0.00013698,2]
[335320430,1724110238909,-500.0,0.00013698,2]
[335320432,1724110238919,-500.0,0.00013698,2]
[335320434,1724110238928,-154.79103211,0.00013698,2]
[335320436,1724110238937,-211.391434,0.00013699,2]
[335320438,1724110238947,-500.0,0.00013699,2]
[335320440,1724110238956,-188.27676244,0.00013699,2]
[335320442,1724110238966,-543.06199596,0.00013699,2]
[335320444,1724110238975,-543.06199596,0.00013699,2]
[335320446,1724110238985,-515.90889617,0.00013699,2]
[335320448,1724110238996,-543.06199596,0.00013699,2]
[335320450,1724110239007,-543.06199596,0.00013699,2]
[335320452,1724110239016,-543.06199596,0.00013699,2]
[335320455,1724110239028,-500.0,0.00013699,2]
[335320457,1724110239038,-500.0,0.00013699,2]
[335320459,1724110239049,-543.06199596,0.00013699,2]
[335320461,1724110239060,-543.06199596,0.00013699,2]
[335320463,1724110239072,-500.0,0.00013699,2]
[335320465,1724110239082,-433.50638658,0.00013792,2]
[335320467,1724110239092,-6935.94482088,0.0001387,2]
[335320469,1724110239101,-217.52193552,0.0001396,2]
[335320471,1724110239111,-500.0,0.0001396,2]
[335320474,1724110239121,-500.0,0.0001396,2]
[335320476,1724110239132,-500.0,0.0001396,2]
[335320478,1724110239145,-486.36559618,0.0001396,2]
[335320480,1724110239157,-360.8502784,0.0001396,2]
[335320483,1724110239168,-500.0,0.0001396,2]
[335320485,1724110239179,-500.0,0.0001396,2]
[335320487,1724110239190,-500.0,0.0001396,2]
[335320489,1724110239200,-500.0,0.0001396,2]
[335320491,1724110239210,-500.0,0.0001396,2]
[335320493,1724110239221,-73906.558377,0.00013961,2]
[335320495,1724110239231,-200.0,0.00013973,2]
[335320498,1724110239242,-178.12087349,0.00013973,2]
[335320500,1724110239253,-20715.93667635,0.00014,4]
[335320502,1724110239263,-4873.43310846,0.00014,2]
[335320504,1724110239274,-309.39667648,0.00014199,2]
[335320506,1724110239284,-750.0,0.00014247,2]
[335320508,1724110239294,-6935.94482088,0.00014446,2]
[335320510,1724110239304,-587.0,0.00014517,2]
[335320512,1724110239313,-953.38755458,0.00015,2]
[335320514,1724110239323,-1557.80026965,0.00015,2]
[335320516,1724110239332,-165.11974632,0.00015,2]
[335320518,1724110239342,-23871.56393276,0.00015021,2]